[Event "NJSK 2026 Jeugd C"]
[Site "Helmond, Netherlands"]
[Date "2026.04.25"]
[Round "1.2"]
[White "Thijssen, Freek"]
[Black "Ozbek, Ahmet Naim"]
[Result "1-0"]
[TimeControl "90min/40moves + 30sec/move"]
[WhiteTitle "-"]
[BlackTitle "-"]
[WhiteFideId "1091840"]
[BlackFideId "40101975"]
[WhiteElo "2159"]
[BlackElo "1869"]

1. e4 {[%clk 01:30:56]} {[%emt 00:00:03]} e5 {[%clk 01:30:55]} {[%emt
00:00:06]} 2. Nf3 {[%clk 01:31:10]} {[%emt 00:00:15]} Nc6 {[%clk 01:31:15]}
{[%emt 00:00:11]} 3. Bc4 {[%clk 01:31:21]} {[%emt 00:00:19]} Bc5 {[%clk
01:31:40]} {[%emt 00:00:05]} 4. O-O {[%clk 01:31:25]} {[%emt 00:00:26]} Nf6
{[%clk 01:31:43]} {[%emt 00:00:27]} 5. d3 {[%clk 01:30:53]} {[%emt 00:01:02]}
h6 {[%clk 01:31:25]} {[%emt 00:00:49]} 6. c3 {[%clk 01:30:47]} {[%emt
00:00:36]} Bb6 {[%clk 01:30:55]} {[%emt 00:01:01]} 7. Re1 {[%clk 01:25:34]}
{[%emt 00:05:42]} O-O {[%clk 01:23:27]} {[%emt 00:07:55]} 8. h3 {[%clk
01:23:46]} {[%emt 00:02:21]} d6 {[%clk 01:22:21]} {[%emt 00:01:36]} 9. Nbd2
{[%clk 01:22:33]} {[%emt 00:01:44]} Ne7 {[%clk 01:22:19]} {[%emt 00:00:31]} 10.
Bb3 {[%clk 01:03:31]} {[%emt 00:19:33]} c6 {[%clk 01:21:24]} {[%emt 00:01:25]}
11. Nf1 {[%clk 00:59:01]} {[%emt 00:04:58]} Ng6 {[%clk 01:21:21]} {[%emt
00:00:33]} 12. Bc2 {[%clk 00:57:59]} {[%emt 00:01:32]} Re8 {[%clk 01:20:36]}
{[%emt 00:01:14]} 13. d4 {[%clk 00:54:50]} {[%emt 00:03:41]} d5 {[%clk
01:12:30]} {[%emt 00:08:37]} 14. Nxe5 {[%clk 00:36:57]} {[%emt 00:18:22]} Nxe5
{[%clk 01:05:23]} {[%emt 00:07:37]} 15. dxe5 {[%clk 00:37:24]} {[%emt
00:00:02]} Nxe4 {[%clk 00:59:39]} {[%emt 00:06:14]} 16. Bxe4 {[%clk 00:32:42]}
{[%emt 00:05:13]} dxe4 {[%clk 00:58:35]} {[%emt 00:01:35]} 17. Qxd8 {[%clk
00:24:16]} {[%emt 00:08:55]} Rxd8 {[%clk 00:59:01]} {[%emt 00:00:04]} 18. Bf4
{[%clk 00:17:02]} {[%emt 00:07:44]} g5 {[%clk 00:43:14]} {[%emt 00:16:16]} 19.
Be3 {[%clk 00:08:37]} {[%emt 00:08:56]} Bc7 {[%clk 00:35:05]} {[%emt 00:08:39]}
20. Bd4 {[%clk 00:07:32]} {[%emt 00:01:35]} b6 {[%clk 00:34:36]} {[%emt
00:00:59]} 21. b4 {[%clk 00:07:08]} {[%emt 00:00:54]} Bb7 {[%clk 00:26:50]}
{[%emt 00:08:17]} 22. Ng3 {[%clk 00:03:35]} {[%emt 00:04:03]} c5 {[%clk
00:26:51]} {[%emt 00:00:37]} 23. bxc5 {[%clk 00:04:03]} bxc5 {[%clk 00:27:14]}
{[%emt 00:00:01]} 24. Bxc5 {[%clk 00:03:50]} {[%emt 00:00:41]} Bxe5 {[%clk
00:26:52]} {[%emt 00:00:52]} 25. Rab1 {[%clk 00:03:51]} {[%emt 00:00:30]} Bd5
{[%clk 00:25:15]} {[%emt 00:02:06]} 26. Nxe4 {[%clk 00:03:56]} {[%emt
00:00:25]} Bxe4 {[%clk 00:24:47]} {[%emt 00:00:58]} 27. Rxe4 {[%clk 00:04:21]}
{[%emt 00:00:05]} Bxc3 {[%clk 00:24:52]} {[%emt 00:00:24]} 28. Rb7 {[%emt
00:11:57]} Rd5 {[%clk 00:14:09]} 29. Bxa7 {[%clk 00:03:57]} {[%emt 00:00:40]}
Be5 {[%clk 00:14:05]} {[%emt 00:00:35]} 30. g3 {[%clk 00:03:39]} {[%emt
00:00:48]} Ra5 {[%clk 00:14:28]} {[%emt 00:00:07]} 31. Be3 {[%clk 00:02:22]}
{[%emt 00:01:46]} Bd6 {[%clk 00:14:05]} {[%emt 00:00:53]} 32. Rd7 {[%clk
00:01:22]} {[%emt 00:01:30]} Bf8 {[%clk 00:12:31]} {[%emt 00:02:05]} 33. Rc4
{[%clk 00:01:49]} {[%emt 00:00:03]} Rxa2 {[%clk 00:05:37]} {[%emt 00:07:24]} 34.
Rcc7 {[%clk 00:02:12]} {[%emt 00:00:07]} f6 {[%clk 00:05:40]} {[%emt 00:00:27]}
35. Rf7 {[%clk 00:01:57]} {[%emt 00:00:44]} R2a6 {[%clk 00:05:02]} {[%emt
00:01:09]} 36. Bd4 {[%clk 00:02:23]} {[%emt 00:00:05]} Rc6 {[%clk 00:03:53]}
{[%emt 00:01:38]} 37. Rxf8+ {[%clk 00:02:41]} {[%emt 00:00:11]} 1-0

[Event "NJSK 2026 Jeugd C"]
[Site "Helmond, Netherlands"]
[Date "2026.04.25"]
[Round "1.3"]
[White "Zhou, Yanyang"]
[Black "Zhang, Xiheng"]
[Result "1/2-1/2"]
[TimeControl "90min/40moves + 30sec/move"]
[WhiteTitle "-"]
[BlackTitle "-"]
[WhiteFideId "40109739"]
[BlackFideId "40102386"]
[WhiteElo "1860"]
[BlackElo "2135"]

1. e4 {[%clk 01:30:57]} {[%emt 00:00:03]} c5 {[%clk 01:30:57]} {[%emt
00:00:03]} 2. Nf3 {[%clk 01:31:22]} {[%emt 00:00:05]} e6 {[%clk 01:31:23]}
{[%emt 00:00:04]} 3. c3 {[%clk 01:31:46]} {[%emt 00:00:06]} d5 {[%clk
01:31:50]} {[%emt 00:00:04]} 4. exd5 {[%clk 01:32:09]} {[%emt 00:00:07]} Qxd5
{[%clk 01:32:15]} {[%emt 00:00:05]} 5. Na3 {[%clk 01:32:25]} {[%emt 00:00:13]}
Nf6 {[%clk 01:32:08]} {[%emt 00:00:37]} 6. d4 {[%clk 01:32:40]} {[%emt
00:00:15]} a6 {[%clk 01:31:29]} {[%emt 00:01:10]} 7. Nc4 {[%clk 01:29:39]}
{[%emt 00:03:30]} Nbd7 {[%clk 01:31:54]} {[%emt 00:00:06]} 8. Ne3 {[%clk
01:29:10]} {[%emt 00:00:58]} Qc6 {[%clk 01:32:00]} {[%emt 00:00:25]} 9. Be2
{[%clk 01:27:43]} {[%emt 00:01:56]} b5 {[%clk 01:29:25]} {[%emt 00:03:05]} 10.
O-O {[%clk 01:26:46]} {[%emt 00:01:26]} Bb7 {[%clk 01:28:11]} {[%emt 00:01:46]}
11. c4 {[%clk 01:23:44]} {[%emt 00:03:31]} bxc4 {[%clk 01:14:42]} {[%emt
00:14:00]} 12. Bxc4 {[%clk 01:21:14]} {[%emt 00:02:59]} cxd4 {[%clk 01:10:40]}
{[%emt 00:04:32]} 13. Nxd4 {[%clk 01:20:52]} {[%emt 00:00:52]} Qc7 {[%clk
01:09:58]} {[%emt 00:01:12]} 14. b3 {[%clk 01:18:53]} {[%emt 00:02:29]} Bd6
{[%clk 01:05:00]} {[%emt 00:05:28]} 15. h3 {[%clk 01:16:50]} {[%emt 00:02:32]}
O-O {[%clk 00:49:18]} {[%emt 00:16:13]} 16. Bb2 {[%emt 00:19:17]} Rfd8 {[%clk
00:36:15]} 17. Rc1 {[%clk 01:00:26]} {[%emt 00:11:40]} Qb8 {[%clk 00:34:47]}
{[%emt 00:01:58]} 18. Qe2 {[%clk 00:58:45]} {[%emt 00:02:10]} Nb6 {[%clk
00:32:45]} {[%emt 00:02:33]} 19. Nf3 {[%clk 00:52:47]} {[%emt 00:06:28]} Nh5
{[%clk 00:22:05]} {[%emt 00:11:10]} 20. Ne1 {[%clk 00:42:34]} {[%emt 00:10:42]}
Nf4 {[%clk 00:18:01]} {[%emt 00:04:35]} 21. Qg4 {[%clk 00:41:09]} {[%emt
00:01:54]} g6 {[%clk 00:10:22]} {[%emt 00:08:11]} 22. g3 {[%clk 00:35:12]}
{[%emt 00:06:25]} Nxc4 {[%clk 00:08:43]} {[%emt 00:02:10]} 23. Nxc4 {[%clk
00:34:17]} {[%emt 00:01:24]} f5 {[%clk 00:04:28]} {[%emt 00:04:46]} 24. Qh4
{[%clk 00:30:01]} {[%emt 00:04:46]} Ne2+ {[%clk 00:04:40]} {[%emt 00:00:18]} 25.
Kh2 {[%clk 00:30:21]} {[%emt 00:00:09]} Nxc1 {[%clk 00:03:56]} {[%emt
00:01:15]} 26. Qf6 {[%clk 00:29:05]} {[%emt 00:01:44]} e5 {[%clk 00:03:16]}
{[%emt 00:01:12]} 27. Qe6+ {[%clk 00:28:59]} {[%emt 00:00:35]} Kf8 {[%clk
00:00:51]} {[%emt 00:02:56]} 28. Qf6+ {[%clk 00:28:03]} {[%emt 00:01:25]} Kg8
{[%clk 00:01:00]} {[%emt 00:00:22]} 29. Qe6+ {[%clk 00:28:24]} {[%emt
00:00:08]} Kf8 {[%clk 00:01:05]} {[%emt 00:00:25]} 30. Qf6+ {[%clk 00:28:46]}
{[%emt 00:00:08]} Ke8 {[%clk 00:00:45]} {[%emt 00:00:52]} 31. Qe6+ {[%clk
00:26:21]} {[%emt 00:02:53]} Be7 {[%clk 00:00:35]} {[%emt 00:00:40]} 32. Nb6
{[%clk 00:15:09]} {[%emt 00:11:42]} Qd6 {[%clk 00:00:39]} {[%emt 00:00:26]} 33.
Qg8+ {[%clk 00:15:18]} {[%emt 00:00:21]} Bf8 {[%clk 00:01:09]} {[%emt
00:00:01]} 34. Nxa8 {[%clk 00:15:26]} {[%emt 00:00:22]} Ne2 {[%clk 00:00:48]}
{[%emt 00:00:51]} 35. Nc2 {[%clk 00:13:10]} {[%emt 00:02:45]} Bxa8 {[%clk
00:00:46]} {[%emt 00:00:33]} 36. Ba3 {[%clk 00:13:31]} {[%emt 00:00:09]} Qf6
{[%clk 00:00:43]} {[%emt 00:00:33]} 37. Bxf8 {[%clk 00:13:26]} {[%emt
00:00:35]} Bd5 {[%clk 00:00:49]} {[%emt 00:00:24]} 38. Bg7+ {[%clk 00:13:06]}
{[%emt 00:00:49]} Bxg8 {[%clk 00:01:14]} {[%emt 00:00:05]} 39. Bxf6 {[%clk
00:13:32]} {[%emt 00:00:04]} Rd2 {[%clk 00:01:30]} {[%emt 00:00:14]} 40. Nb4
{[%clk 00:12:50]} {[%emt 00:01:12]} a5 {[%clk 00:00:44]} {[%emt 00:01:17]} 41.
Na6 {[%clk 00:12:04]} {[%emt 00:01:16]} Nc3 {[%clk 00:00:33]} {[%emt 00:00:42]}
42. Bxe5 {[%clk 00:11:48]} {[%emt 00:00:46]} Nxa2 {[%clk 00:00:45]} {[%emt
00:00:18]} 43. Bc7 {[%clk 00:10:08]} {[%emt 00:02:09]} Bxb3 {[%clk 00:00:51]}
{[%emt 00:00:25]} 44. Bxa5 {[%clk 00:09:40]} {[%emt 00:00:58]} Rc2 {[%clk
00:01:00]} {[%emt 00:00:21]} 45. Nb4 {[%clk 00:09:25]} {[%emt 00:00:45]} Rc5
{[%clk 00:00:44]} {[%emt 00:00:45]} 46. Nxa2 {[%clk 00:08:36]} {[%emt
00:01:20]} Rxa5 {[%clk 00:01:12]} {[%emt 00:00:02]} 47. Re1+ {[%clk 00:08:21]}
{[%emt 00:00:44]} Kf7 {[%clk 00:01:41]} {[%emt 00:00:02]} 48. Nc1 {[%clk
00:08:15]} {[%emt 00:00:36]} Bc4 {[%clk 00:01:58]} {[%emt 00:00:13]} 49. Rd1
{[%clk 00:06:55]} {[%emt 00:01:48]} Ra1 {[%clk 00:01:26]} {[%emt 00:01:03]} 50.
Re1 {[%clk 00:06:35]} {[%emt 00:00:51]} Rb1 {[%clk 00:01:46]} {[%emt 00:00:09]}
51. Kg1 {[%clk 00:06:09]} {[%emt 00:00:56]} Kf6 {[%clk 00:01:52]} {[%emt
00:00:26]} 52. h4 {[%clk 00:06:10]} {[%emt 00:00:27]} Rb2 {[%clk 00:01:24]}
{[%emt 00:00:57]} 53. Rd1 {[%clk 00:05:59]} {[%emt 00:00:41]} Rb1 {[%clk
00:01:40]} {[%emt 00:00:14]} 54. Re1 {[%clk 00:06:24]} {[%emt 00:00:06]} h6
{[%clk 00:02:06]} {[%emt 00:00:04]} 55. Kh2 {[%clk 00:04:43]} {[%emt 00:02:11]}
g5 {[%clk 00:01:12]} {[%emt 00:01:23]} 56. hxg5+ {[%clk 00:04:37]} {[%emt
00:00:35]} hxg5 {[%clk 00:01:20]} {[%emt 00:00:22]} 57. Kg1 {[%clk 00:04:29]}
{[%emt 00:00:37]} g4 {[%clk 00:01:31]} {[%emt 00:00:21]} 58. Kh2 {[%clk
00:04:16]} {[%emt 00:00:42]} Rb8 {[%clk 00:01:23]} {[%emt 00:00:38]} 59. Kg1
{[%clk 00:03:40]} {[%emt 00:01:06]} Rh8 {[%clk 00:01:10]} {[%emt 00:00:43]} 60.
Kg2 {[%clk 00:03:10]} {[%emt 00:01:00]} Bd5+ {[%clk 00:01:37]} {[%emt
00:00:04]} 61. Kf1 {[%clk 00:02:39]} {[%emt 00:01:01]} Bf3 {[%clk 00:01:54]}
{[%emt 00:00:13]} 62. Ne2 {[%clk 00:03:03]} {[%emt 00:00:05]} Re8 {[%clk
00:01:39]} {[%emt 00:00:45]} 63. Nf4 {[%clk 00:02:53]} {[%emt 00:00:40]} Rh8
{[%clk 00:01:16]} {[%emt 00:00:54]} 64. Ne2 {[%clk 00:03:17]} {[%emt 00:00:06]}
Rh7 {[%clk 00:00:58]} {[%emt 00:00:47]} 65. Ng1 {[%clk 00:03:04]} {[%emt
00:00:44]} Rh1 {[%clk 00:00:42]} {[%emt 00:00:46]} 66. Ra1 {[%clk 00:03:01]}
{[%emt 00:00:32]} Kg5 {[%clk 00:00:46]} {[%emt 00:00:26]} 67. Ra4 {[%clk
00:02:41]} {[%emt 00:00:47]} Bc6 {[%clk 00:00:56]} {[%emt 00:00:23]} 68. Rb4
{[%clk 00:02:25]} {[%emt 00:00:46]} Be4 {[%clk 00:00:57]} {[%emt 00:00:29]} 69.
Rd4 {[%clk 00:02:35]} {[%emt 00:00:19]} Bb7 {[%clk 00:00:54]} {[%emt 00:00:34]}
70. Ra4 {[%clk 00:02:54]} {[%emt 00:00:08]} Kf6 {[%clk 00:01:08]} {[%emt
00:00:20]} 71. Rb4 {[%clk 00:02:58]} {[%emt 00:00:26]} Rh7 {[%clk 00:00:53]}
{[%emt 00:00:44]} 72. Rb6+ {[%clk 00:03:00]} {[%emt 00:00:28]} Ke5 {[%clk
00:00:59]} {[%emt 00:00:24]} 73. Rb4 {[%clk 00:03:16]} {[%emt 00:00:14]} Rd7
{[%clk 00:00:55]} {[%emt 00:00:34]} 74. Rb1 {[%clk 00:03:25]} {[%emt 00:00:19]}
Be4 {[%clk 00:01:06]} {[%emt 00:00:21]} 75. Rc1 {[%clk 00:03:32]} {[%emt
00:00:23]} Ra7 {[%clk 00:00:59]} {[%emt 00:00:34]} 76. Ke1 {[%clk 00:03:10]}
{[%emt 00:00:53]} Bd3 {[%clk 00:00:55]} {[%emt 00:00:36]} 77. Ne2 {[%clk
00:02:56]} {[%emt 00:00:43]} Ke4 {[%clk 00:00:47]} {[%emt 00:00:39]} 78. Nf4
{[%clk 00:03:11]} {[%emt 00:00:15]} Bb5 {[%clk 00:00:54]} {[%emt 00:00:22]} 79.
Rb1 {[%clk 00:02:59]} {[%emt 00:00:43]} Bc4 {[%clk 00:00:44]} {[%emt 00:00:38]}
80. Rc1 {[%clk 00:03:12]} {[%emt 00:00:19]} Ra4 {[%clk 00:00:46]} {[%emt
00:00:28]} 81. Ng6 {[%clk 00:02:38]} {[%emt 00:01:02]} Ba6 {[%clk 00:00:41]}
{[%emt 00:00:36]} 82. Nf4 {[%clk 00:02:45]} {[%emt 00:00:23]} Ra2 {[%clk
00:00:44]} {[%emt 00:00:28]} 83. Rb1 {[%clk 00:02:50]} {[%emt 00:00:24]} Ra3
{[%clk 00:01:08]} {[%emt 00:00:07]} 84. Ng2 {[%clk 00:02:48]} {[%emt 00:00:32]}
Kf3 {[%clk 00:00:33]} {[%emt 00:02:36]} 85. Nh4+ {[%clk 00:03:06]} {[%emt
00:00:11]} Ke4 {[%clk 00:00:56]} {[%emt 00:00:07]} 86. Ng2 {[%clk 00:03:30]}
{[%emt 00:00:06]} Kd3 {[%clk 00:00:49]} {[%emt 00:00:37]} 87. Rd1+ {[%clk
00:03:24]} {[%emt 00:00:36]} Ke4 {[%clk 00:01:09]} {[%emt 00:00:11]} 88. Rb1
{[%clk 00:03:38]} {[%emt 00:00:15]} 1/2-1/2

[Event "NJSK 2026 Jeugd C"]
[Site "Helmond, Netherlands"]
[Date "2026.04.25"]
[Round "1.4"]
[White "Teianu, Sabin"]
[Black "Huang, Vincent"]
[Result "1-0"]
[TimeControl "90min/40moves + 30sec/move"]
[WhiteTitle "-"]
[BlackTitle "-"]
[WhiteFideId "1095846"]
[BlackFideId "40104184"]
[WhiteElo "2131"]
[BlackElo "1855"]

1. d4 {[%clk 01:30:57]} {[%emt 00:00:02]} d5 {[%clk 01:30:54]} {[%emt
00:00:06]} 2. c4 {[%clk 01:31:23]} {[%emt 00:00:04]} e6 {[%clk 01:31:18]}
{[%emt 00:00:06]} 3. Nf3 {[%clk 01:31:50]} {[%emt 00:00:04]} Nf6 {[%clk
01:31:31]} {[%emt 00:00:17]} 4. Nc3 {[%clk 01:32:15]} {[%emt 00:00:05]} c6
{[%clk 01:31:19]} {[%emt 00:00:42]} 5. e3 {[%clk 01:32:40]} {[%emt 00:00:05]}
Be7 {[%clk 01:31:13]} {[%emt 00:00:36]} 6. Be2 {[%clk 01:33:04]} {[%emt
00:00:06]} O-O {[%clk 01:31:31]} {[%emt 00:00:12]} 7. O-O {[%clk 01:33:31]}
{[%emt 00:00:03]} b6 {[%clk 01:30:57]} {[%emt 00:01:04]} 8. b3 {[%clk
01:33:54]} {[%emt 00:00:07]} Bb7 {[%clk 01:30:48]} {[%emt 00:00:38]} 9. Bb2
{[%clk 01:34:17]} {[%emt 00:00:08]} Nbd7 {[%clk 01:29:49]} {[%emt 00:01:29]} 10.
Rc1 {[%clk 01:34:13]} {[%emt 00:00:34]} Rc8 {[%clk 01:29:49]} {[%emt 00:00:29]}
11. Bd3 {[%clk 01:30:10]} {[%emt 00:04:34]} Re8 {[%clk 01:25:27]} {[%emt
00:04:51]} 12. Re1 {[%clk 01:30:22]} {[%emt 00:00:19]} Bf8 {[%clk 01:19:38]}
{[%emt 00:06:19]} 13. Ne5 {[%clk 01:17:02]} {[%emt 00:13:49]} g6 {[%clk
01:14:26]} {[%emt 00:05:43]} 14. f4 {[%clk 01:16:38]} {[%emt 00:00:54]} Bg7
{[%clk 01:14:03]} {[%emt 00:00:52]} 15. Qe2 {[%clk 01:03:44]} {[%emt 00:13:25]}
Qe7 {[%clk 01:07:45]} {[%emt 00:06:48]} 16. cxd5 {[%clk 00:46:36]} {[%emt
00:17:38]} exd5 {[%clk 01:06:01]} {[%emt 00:02:15]} 17. Nb1 {[%clk 00:34:50]}
{[%emt 00:12:15]} Nxe5 {[%clk 00:47:01]} {[%emt 00:19:30]} 18. dxe5 {[%clk
00:26:22]} {[%emt 00:08:57]} Nd7 {[%clk 00:44:03]} {[%emt 00:03:29]} 19. e4
{[%clk 00:16:16]} {[%emt 00:10:36]} dxe4 {[%clk 00:35:23]} {[%emt 00:09:10]} 20.
Bxe4 {[%clk 00:16:33]} {[%emt 00:00:13]} Nb8 {[%clk 00:32:52]} {[%emt
00:03:01]} 21. Nd2 {[%clk 00:11:36]} {[%emt 00:05:28]} c5 {[%clk 00:25:06]}
{[%emt 00:08:15]} 22. Bxb7 {[%clk 00:10:22]} {[%emt 00:01:43]} Qxb7 {[%clk
00:25:28]} {[%emt 00:00:09]} 23. Ne4 {[%clk 00:10:05]} {[%emt 00:00:47]} Rcd8
{[%clk 00:24:59]} {[%emt 00:00:59]} 24. Rcd1 {[%clk 00:04:43]} {[%emt
00:05:52]} Qc7 {[%clk 00:18:46]} {[%emt 00:06:39]} 25. Qf2 {[%clk 00:01:59]}
{[%emt 00:03:19]} Rxd1 {[%clk 00:11:42]} {[%emt 00:07:33]} 26. Rxd1 {[%clk
00:02:24]} {[%emt 00:00:05]} Rd8 {[%clk 00:11:31]} {[%emt 00:00:42]} 27. Re1
{[%clk 00:00:46]} {[%emt 00:02:08]} h6 {[%clk 00:09:05]} {[%emt 00:02:55]} 28.
Qh4 {[%clk 00:00:35]} {[%emt 00:00:41]} Nc6 {[%clk 00:08:13]} {[%emt 00:01:23]}
29. Nf6+ {[%clk 00:00:38]} {[%emt 00:00:27]} Kf8 {[%clk 00:08:00]} {[%emt
00:00:43]} 30. f5 {[%clk 00:00:34]} {[%emt 00:00:34]} g5 {[%clk 00:03:44]}
{[%emt 00:04:47]} 31. Nh7+ {[%clk 00:00:37]} {[%emt 00:00:27]} Ke8 {[%clk
00:03:22]} {[%emt 00:00:53]} 32. Qe4 {[%clk 00:00:39]} {[%emt 00:00:27]} Nd4
{[%clk 00:03:02]} {[%emt 00:00:50]} 33. f6 {[%clk 00:00:32]} {[%emt 00:00:37]}
Bh8 {[%clk 00:02:45]} {[%emt 00:00:46]} 34. Bxd4 {[%clk 00:00:38]} {[%emt
00:00:24]} Rxd4 {[%clk 00:03:02]} {[%emt 00:00:14]} 35. Qf5 {[%clk 00:00:34]}
{[%emt 00:00:33]} Rf4 {[%clk 00:02:39]} {[%emt 00:00:53]} 36. Qh3 {[%clk
00:00:44]} {[%emt 00:00:20]} Qd8 {[%clk 00:02:18]} {[%emt 00:00:51]} 37. Qxh6
{[%clk 00:00:37]} {[%emt 00:00:37]} Qd4+ {[%clk 00:01:50]} {[%emt 00:00:58]} 38.
Kh1 {[%clk 00:01:02]} {[%emt 00:00:05]} Qf2 {[%clk 00:01:52]} {[%emt 00:00:28]}
39. Qf8+ {[%clk 00:01:13]} {[%emt 00:00:19]} Kd7 {[%clk 00:02:17]} {[%emt
00:00:06]} 40. Qxf7+ {[%clk 00:01:07]} {[%emt 00:00:36]} Kc6 {[%clk 00:02:28]}
{[%emt 00:00:19]} 41. Qe8+ {[%clk 00:00:56]} {[%emt 00:00:41]} Kc7 {[%clk
00:02:11]} {[%emt 00:00:47]} 42. Qe7+ {[%clk 00:01:08]} {[%emt 00:00:18]} Kc8
{[%clk 00:02:33]} {[%emt 00:00:08]} 43. Rg1 {[%clk 00:01:01]} {[%emt 00:00:37]}
Rh4 {[%clk 00:01:56]} {[%emt 00:01:08]} 44. Nxg5 {[%clk 00:01:09]} {[%emt
00:00:21]} Qg3 {[%clk 00:01:32]} {[%emt 00:00:53]} 45. Qe6+ {[%clk 00:01:26]}
{[%emt 00:00:13]} Kc7 {[%clk 00:01:40]} {[%emt 00:00:22]} 46. Nh3 {[%clk
00:01:43]} {[%emt 00:00:12]} Qg6 {[%clk 00:01:09]} {[%emt 00:01:03]} 47. Qe7+
{[%clk 00:01:40]} {[%emt 00:00:34]} Kc6 {[%clk 00:01:12]} {[%emt 00:00:26]} 48.
a4 {[%clk 00:01:02]} {[%emt 00:01:07]} Qe4 {[%clk 00:00:39]} {[%emt 00:01:06]}
49. f7 {[%clk 00:01:00]} {[%emt 00:00:29]} Bxe5 {[%clk 00:00:36]} {[%emt
00:00:33]} 50. f8=Q {[%clk 00:00:49]} {[%emt 00:00:42]} Rxh3 {[%clk 00:00:34]}
{[%emt 00:00:32]} 51. Qfe8+ {[%clk 00:01:12]} {[%emt 00:00:07]} Kd5 {[%clk
00:00:53]} {[%emt 00:00:15]} 52. Q8d7+ {[%clk 00:01:23]} {[%emt 00:00:19]} Bd6
{[%clk 00:01:13]} {[%emt 00:00:10]} 53. Qdxd6# {[%clk 00:01:38]} {[%emt
00:00:14]} 1-0

[Event "NJSK 2026 Jeugd C"]
[Site "Helmond, Netherlands"]
[Date "2026.04.25"]
[Round "1.5"]
[White "Roersma, Dylan"]
[Black "Guillaumond, Matthieu"]
[Result "0-1"]
[TimeControl "90min/40moves + 30sec/move"]
[WhiteTitle "-"]
[BlackTitle "-"]
[WhiteFideId "1097393"]
[BlackFideId "1097091"]
[WhiteElo "1846"]
[BlackElo "2104"]

1. e4 {[%clk 01:30:49]} {[%emt 00:00:10]} c5 {[%clk 01:30:55]} {[%emt
00:00:05]} 2. Nf3 {[%clk 01:31:01]} {[%emt 00:00:18]} d6 {[%clk 01:31:20]}
{[%emt 00:00:05]} 3. d4 {[%clk 01:31:22]} {[%emt 00:00:09]} cxd4 {[%clk
01:31:46]} {[%emt 00:00:05]} 4. Nxd4 {[%clk 01:31:45]} {[%emt 00:00:07]} Nf6
{[%clk 01:32:13]} {[%emt 00:00:03]} 5. Nc3 {[%clk 01:32:07]} {[%emt 00:00:10]}
a6 {[%clk 01:32:38]} {[%emt 00:00:05]} 6. Be3 {[%clk 01:31:48]} {[%emt
00:00:45]} e5 {[%clk 01:33:00]} {[%emt 00:00:08]} 7. Nb3 {[%clk 01:32:05]}
{[%emt 00:00:13]} Be6 {[%clk 01:33:22]} {[%emt 00:00:07]} 8. Qd2 {[%clk
01:32:24]} {[%emt 00:00:11]} h5 {[%clk 01:33:28]} {[%emt 00:00:25]} 9. f3
{[%clk 01:31:19]} {[%emt 00:01:35]} Nbd7 {[%clk 01:33:46]} {[%emt 00:00:12]} 10.
O-O-O {[%clk 01:30:55]} {[%emt 00:00:53]} Rc8 {[%clk 01:33:56]} {[%emt
00:00:21]} 11. Kb1 {[%clk 01:28:32]} {[%emt 00:02:53]} Be7 {[%clk 01:34:20]}
{[%emt 00:00:06]} 12. h4 {[%clk 01:27:06]} {[%emt 00:01:55]} Qc7 {[%clk
01:30:55]} {[%emt 00:03:56]} 13. g3 {[%clk 01:20:27]} {[%emt 00:07:09]} b5
{[%clk 01:24:56]} {[%emt 00:06:29]} 14. Nd5 {[%clk 00:58:18]} {[%emt 00:22:37]}
Bxd5 {[%clk 01:10:07]} {[%emt 00:15:19]} 15. exd5 {[%clk 00:58:26]} {[%emt
00:00:22]} Nb6 {[%clk 01:09:56]} {[%emt 00:00:42]} 16. Bxb6 {[%clk 00:53:49]}
{[%emt 00:05:08]} Qxb6 {[%clk 01:08:41]} {[%emt 00:01:45]} 17. Bh3 {[%clk
00:47:26]} {[%emt 00:06:53]} Rc7 {[%clk 01:07:06]} {[%emt 00:02:04]} 18. a3
{[%clk 00:29:28]} {[%emt 00:18:28]} O-O {[%clk 01:01:25]} {[%emt 00:06:11]} 19.
g4 {[%clk 00:18:18]} {[%emt 00:11:39]} hxg4 {[%clk 00:56:42]} {[%emt 00:05:13]}
20. Bxg4 {[%clk 00:15:32]} {[%emt 00:03:16]} Rc4 {[%clk 00:47:39]} {[%emt
00:09:33]} 21. Rhg1 {[%clk 00:09:59]} {[%emt 00:06:02]} Rf4 {[%clk 00:41:38]}
{[%emt 00:06:32]} 22. h5 {[%clk 00:04:27]} {[%emt 00:06:02]} Nh7 {[%clk
00:37:31]} {[%emt 00:04:37]} 23. Qg2 {[%emt 00:03:44]} Bg5 {[%clk 00:36:32]} 24.
Bd7 {[%clk 00:00:53]} {[%emt 00:02:19]} Bh6 {[%clk 00:34:11]} {[%emt 00:02:51]}
25. Nc1 {[%clk 00:00:50]} {[%emt 00:00:33]} Ng5 {[%clk 00:30:12]} {[%emt
00:04:29]} 26. Rd3 {[%clk 00:00:33]} {[%emt 00:00:47]} Nxf3 {[%clk 00:26:24]}
{[%emt 00:04:18]} 27. Rh1 {[%clk 00:00:34]} {[%emt 00:00:29]} e4 {[%clk
00:24:14]} {[%emt 00:02:40]} 28. Rb3 {[%clk 00:00:38]} {[%emt 00:00:26]} Ne5
{[%clk 00:22:57]} {[%emt 00:01:47]} 29. Bh3 {[%clk 00:00:33]} {[%emt 00:00:35]}
f5 {[%clk 00:18:59]} {[%emt 00:04:28]} 30. Rg1 {[%clk 00:00:42]} {[%emt
00:00:21]} Rf2 {[%clk 00:18:45]} {[%emt 00:00:44]} 31. Qg3 {[%clk 00:00:50]}
{[%emt 00:00:22]} Nf3 {[%clk 00:17:58]} {[%emt 00:01:16]} 32. Rxf3 {[%clk
00:00:40]} {[%emt 00:00:40]} Rxf3 {[%emt 00:00:51]} 33. Qg6 {[%clk 00:00:32]}
Rxh3 {[%clk 00:17:06]} {[%emt 00:01:39]} 34. Qe6+ {[%clk 00:00:53]} {[%emt
00:00:10]} Kh7 {[%clk 00:13:13]} {[%emt 00:04:22]} 35. Rg6 {[%clk 00:00:37]}
{[%emt 00:00:47]} Rxh5 {[%clk 00:13:06]} {[%emt 00:00:37]} 36. Ne2 {[%clk
00:00:44]} {[%emt 00:00:22]} Rh1+ {[%clk 00:13:21]} {[%emt 00:00:15]} 37. Ka2
{[%clk 00:01:10]} {[%emt 00:00:04]} Qc7 {[%clk 00:13:46]} {[%emt 00:00:06]} 38.
Nc3 {[%clk 00:00:33]} {[%emt 00:01:07]} Qc4+ {[%clk 00:13:59]} {[%emt
00:00:17]} 39. b3 {[%clk 00:00:58]} {[%emt 00:00:05]} Qxc3 {[%clk 00:14:26]}
{[%emt 00:00:03]} 40. Rxh6+ {[%clk 00:01:08]} {[%emt 00:00:20]} Rxh6 {[%clk
00:14:47]} {[%emt 00:00:09]} 0-1